[Event "Turkish Championship 2022"]
[Site "Kemer-Antalya"]
[Date "2022.11.30"]
[Round "6.2"]
[White "Koksal, Ege"]
[Black "Kilic, Eray"]
[Result "1/2-1/2"]
[ECO "D85"]
[WhiteElo "2321"]
[BlackElo "2437"]
[Annotator "TA"]
[PlyCount "60"]
[EventDate "2022.11.25"]
[EventCountry "TUR"]
[SourceTitle "playchess.com"]
[Source "ChessBase"]
[SourceQuality "1"]
[TimeControl "40/5400+30:1800+30"]

{[%evp 17,60,0,0,0,11,9,7,0,0,0,0,0,70,62,67,54,65,50,54,17,71,64,131,138,149,81,177,75,77,78,66,42,106,105,85,0,0,0,0,0,0,0,0,0,0]} 1. d4 {[%emt 0:04:00]} Nf6 {[%emt 0:01:00]} 2. c4 {[%emt 0:00:30]} g6 {[%emt 0:00:00]} 3. Nc3 {[%emt 0:00:00]} d5 {[%emt 0:00:00]} 4. cxd5 {[%emt 0:00:00]} Nxd5 {[%emt 0:00:00]} 5. e4 {[%emt 0:01:30]} Nxc3 {[%emt 0:00:00]} 6. bxc3 {[%emt 0:00:30]} Bg7 {[%emt 0:00:30]} 7. Nf3 {[%emt 0:00:00]} c5 {[%emt 0:00:30]} 8. h3 {[%emt 0:01:00]} O-O {[%emt 0:00:30]} 9. Be2 {[%emt 0:02:30]} b6 {[%emt 0:06:30]} 10. Be3 $1 {[%emt 0:03:30] 10.Be3 is better than 10.0-0. D85: Exchange Grünfeld: Unusual White 7th moves and lines with 7 Nf3.} Bb7 {[%emt 0:00:30]} 11. Qd3 {[%emt 0:00:30]} (11. dxc5 Bxc3+ 12. Bd2 Bxa1 13. Qxa1 Nd7 $17) 11... cxd4 {[%emt 0:02:30]} 12. cxd4 {[%emt 0:03:30][%cal Bc3d4,Bd4d5][%mdl 32]} Nc6 {[%emt 0:01:30]} 13. O-O {[%emt 0:03:30]} Rc8 {[%emt 0:02:30]} 14. Rac1 {[%emt 0:05:30]} Qd7 {[%emt 0:05:30]} (14... e6 $11) 15. d5 $1 $14 {[%emt 0:07:30]} Na5 {[%emt 0:07:30] [#]} 16. Bd4 $146 {[%emt 0:04:30]} ({Predecessor:} 16. Nd4 Qa4 17. Qd2 Rfd8 18. Bb5 Qa3 19. Rxc8 Rxc8 20. Nc6 a6 21. Nxa5 Bc3 22. Qd3 Qxa5 {1-0 (44) Grachev,B (2543)-Nechepurenko,R (2439) Moscow 2006}) 16... Bxd4 {[%emt 0:14:30]} 17. Qxd4 {[%emt 0:04:30]} Qd6 {[%emt 0:01:30]} 18. Ne5 {[%emt 0:24:30]} Qf6 {[%emt 0:12:30]} (18... Rxc1 $11 19. Rxc1 f6) 19. Bg4 $16 {[%emt 0:05:30]} Rxc1 {[%emt 0:14:30]} ({Better is} 19... Rc4 $14 20. Rxc4 (20. Nxc4 $2 {perishes.} Qxd4 21. Nxa5 bxa5 $19) 20... Nxc4) 20. Rxc1 {[%emt 0:00:30]} h5 {[%emt 0:01:30]} 21. Be2 {[%emt 0:02:30]} ({White should play} 21. Bd7 $1) 21... Rd8 {[%emt 0:02:30] [#]} (21... Rc8 $16 22. Rxc8+ Bxc8) 22. Rc7 {[%emt 0:06:16]} (22. Rc3 $1 $18) 22... Rc8 {[%emt 0:05:33]} 23. Rxc8+ {[%emt 0:01:23]} Bxc8 {[%emt 0:00:27]} 24. Qc3 {[%emt 0:04:07]} Bb7 {[%emt 0:00:30]} (24... Bd7 $1 $14) 25. Bb5 {[%emt 0:00:46]} Kg7 {[%emt 0:03:12]} 26. Be8 {[%emt 0:03:29] White is much more active.} (26. Qc7 $16) 26... Ba6 $11 {[%emt 0:03:01][%cal Oa5c4] The position is equal.} 27. Qc7 {[%emt 0:04:49] Inhibits Nc4.} (27. Bxf7 {[#]} Nc4 $1 {[%mdl 512]} 28. Bxg6 Qxe5 29. Qxe5+ Nxe5 30. Bxh5 Bc4 $19) 27... Qf4 {[%emt 0:00:54][%cal Oa5c4]} 28. Qxe7 {[%emt 0:07:15] Strongly threatening g3.} (28. Qc3 $5 Qf6 $8 29. Qb2 $11 (29. Bxf7 Nc4 $17)) 28... Qc1+ {[%emt 0:00:30]} 29. Kh2 {[%emt 0:00:00] Dancing on a razor blade.} Qf4+ {[%emt 0:00:12]} 30. Kg1 {[%emt 0:00:12] Threatens to win with g3.} (30. Kh1 $5) 30... Qc1+ {[%emt 0:00:00] Weighted Error Value: White=0.17 (very precise) /Black=0.21 (precise)} 1/2-1/2

[Event "Turkish Championship 2022"]
[Site "Kemer-Antalya"]
[Date "2022.11.30"]
[Round "6.3"]
[White "Yaran, Siar"]
[Black "Ozsakallioglu, Okan"]
[Result "1/2-1/2"]
[ECO "D17"]
[WhiteElo "2291"]
[BlackElo "2288"]
[Annotator "TA"]
[PlyCount "44"]
[EventDate "2022.11.25"]
[EventCountry "TUR"]
[SourceTitle "playchess.com"]
[Source "ChessBase"]
[SourceQuality "1"]
[TimeControl "40/5400+30:1800+30"]

{[%evp 20,44,10,12,6,12,20,12,8,12,33,12,17,0,0,0,0,0,0,-8,-8,-47,0,0,0,-60,0]} 1. d4 {[%emt 0:01:00]} d5 {[%emt 0:06:00]} 2. c4 {[%emt 0:00:30]} c6 {[%emt 0:00:00]} 3. Nc3 {[%emt 0:00:30]} Nf6 {[%emt 0:04:00]} 4. Nf3 {[%emt 0:00:00]} dxc4 {[%emt 0:00:30]} 5. a4 {[%emt 0:00:00]} Bf5 {[%emt 0:00:30]} 6. Ne5 {[%emt 0:00:00]} e6 {[%emt 0:00:30]} 7. f3 {[%emt 0:03:00]} Bb4 {[%emt 0:00:30]} 8. e4 {[%emt 0:00:30]} Bxe4 {[%emt 0:00:30]} 9. fxe4 {[%emt 0:00:30]} Nxe4 {[%emt 0:00:00]} 10. Bd2 {[%emt 0:00:30]} Qxd4 {[%emt 0:00:00]} 11. Nxe4 {[%emt 0:00:30]} Qxe4+ {[%emt 0:00:00] D17: Slav Defence: 5 a4 Bf5: Lines with 6 Nh4 and 6 Ne5.} 12. Qe2 {[%emt 0:00:30]} Bxd2+ {[%emt 0:00:00]} 13. Kxd2 {[%emt 0:00:00]} Qd5+ {[%emt 0:00:30] The position is equal.} 14. Kc1 {[%emt 0:02:00] Active counter play!} Na6 {[%emt 0:08:30]} 15. Ra3 {[%emt 0:00:30] [#]} Rd8 $146 {[%emt 0:16:30][%cal Oc4c3]} ({Predecessor:} 15... Nb4 16. Qxc4 Qxe5 17. Qxb4 O-O-O 18. Rb3 Rd7 19. Bd3 Qg5+ 20. Kb1 Rhd8 21. Rc1 Rc7 {1-0 (55) Bernado Lopez,R (2315)-Deodhar,V (1984) Barbera del Valles 2022}) 16. Qe1 {[%emt 0:08:30] Against c3} Nb4 $1 {[%emt 0:00:30][%cal Ob7b5] Threatens to win with ...b5!} 17. Bxc4 {[%emt 0:19:30]} Qxg2 {[%emt 0:02:30][%csl Gb4][%cal Rg2c2]} 18. Rc3 {[%emt 0:00:30][%cal Oe5f7] Against Qc2+. Hoping for Nxf7!} Rd2 {[%emt 0:12:30] ...Rc2+ is the strong threat.} 19. Rg1 {[%emt 0:47:40][%cal Og1g2]} ({Don't play} 19. Qxd2 Qxh1+ 20. Qd1 Qxd1+ 21. Kxd1 Ke7 $15) 19... Rc2+ {[%emt 0:12:30]} 20. Kd1 {[%emt 0:00:34] [#]} (20. Kb1 $5 {[%cal Rg1g2]} Rxb2+ 21. Kc1 Rc2+ 22. Kb1 Rb2+ 23. Kc1 Rc2+ 24. Kb1 $11) 20... Rd2+ {[%emt 0:00:00]} 21. Kc1 $1 $11 {[%emt 0:00:00][%cal Og1g2][%mdl 64] The board is on fire.} Rc2+ {[%emt 0:01:00]} (21... Qxh2 $11 22. Nxf7 Rc2+ 23. Kb1 Rxb2+ 24. Kc1 Rc2+ 25. Kb1 Rb2+ 26. Kc1 Rc2+ 27. Kb1 Rb2+) 22. Kd1 $15 {[%emt 0:00:23]} Rd2+ {[%emt 0:00:00] A balanced but interesting game.   Weighted Error Value: White=0.06 (flawless) /Black=0.08 (flawless)} 1/2-1/2

[Event "Turkish Championship 2022"]
[Site "Kemer-Antalya"]
[Date "2022.11.30"]
[Round "6.4"]
[White "Agdelen, Huseyin Can"]
[Black "Yilmaz, Mustafa"]
[Result "1/2-1/2"]
[ECO "C47"]
[WhiteElo "2416"]
[BlackElo "2621"]
[Annotator "TA"]
[PlyCount "60"]
[EventDate "2022.11.25"]
[EventCountry "TUR"]
[SourceTitle "playchess.com"]
[Source "ChessBase"]
[SourceQuality "1"]
[TimeControl "40/5400+30:1800+30"]

{[%evp 24,60,14,14,19,20,16,24,16,16,16,20,18,18,22,35,23,18,18,20,44,41,41,40,33,26,39,27,28,7,16,14,22,22,24,16,18,24,16]} 1. e4 {[%emt 0:03:00]} e5 {[%emt 0:01:00]} 2. Nf3 {[%emt 0:00:30]} Nc6 {[%emt 0:00:00]} 3. Nc3 {[%emt 0:00:30]} Nf6 {[%emt 0:01:00]} 4. d4 {[%emt 0:00:30]} exd4 {[%emt 0:01:30]} 5. Nxd4 {[%emt 0:00:30]} Bb4 {[%emt 0:01:30]} 6. Nxc6 {[%emt 0:00:30]} bxc6 {[%emt 0:00:00]} 7. Bd3 {[%emt 0:00:30]} d5 {[%emt 0:03:00]} 8. exd5 {[%emt 0:00:30]} O-O {[%emt 0:00:00]} 9. O-O {[%emt 0:01:30]} cxd5 {[%emt 0:00:00]} 10. Bg5 {[%emt 0:00:30]} c6 {[%emt 0:04:30]} 11. Qf3 {[%emt 0:04:30]} Bd6 {[%emt 0:02:30] 11...h6 is setting a new trend.} 12. Rae1 {[%emt 0:08:30]} Rb8 {[%emt 0:04:30]} 13. Nd1 {[%emt 0:00:30]} h6 {[%emt 0:05:30] C47: Scotch Four Knights and Four Knights with 4 g3.} 14. Bxf6 {[%emt 0:01:30]} Qxf6 {[%emt 0:01:30]} 15. Qxf6 {[%emt 0:00:30]} gxf6 {[%emt 0:00:00]} 16. b3 {[%emt 0:00:30]} Be6 {[%emt 0:06:00]} 17. Ne3 {[%emt 0:01:30]} Rfe8 {[%emt 0:03:30]} 18. Nf5 {[%emt 0:07:30]} Bxf5 {[%emt 0:02:30]} 19. Bxf5 {[%emt 0:03:30]} Re5 {[%emt 0:01:30] [#]} 20. Bg4 $146 {[%emt 0:00:30]} ({Predecessor:} 20. Bd7 Rb5 21. g4 h5 22. h3 Ra5 23. a4 Rc5 24. Bf5 Rc3 25. Kg2 Kg7 26. Bd3 {½-½ (32) Butnorius,A (2518)-Akdag,M (2559) ICCF email 2013}) 20... Rb5 {[%emt 0:07:30]} 21. Rd1 {[%emt 0:25:30]} Rb4 {[%emt 0:21:30]} 22. Bf3 {[%emt 0:03:30]} Bc5 {[%emt 0:01:30]} 23. Rd3 {[%emt 0:01:30]} Re6 {[%emt 0:04:30]} 24. g3 {[%emt 0:01:30]} f5 {[%emt 0:01:30]} 25. Kg2 {[%emt 0:01:30]} a5 {[%emt 0:05:30]} 26. a4 {[%emt 0:00:30]} f4 {[%emt 0:01:30]} 27. Rfd1 {[%emt 0:01:30]} fxg3 {[%emt 0:00:30]} 28. hxg3 {[%emt 0:00:30]} Kg7 {[%emt 0:01:12]} 29. Rh1 {[%emt 0:03:30]} Rd4 {[%emt 0:00:44]} 30. Rxd4 {[%emt 0:00:30]} Bxd4 {[%emt 0:00:34] Weighted Error Value: White=0.03 (flawless) /Black=0.04 (flawless)} 1/2-1/2

[Event "Turkish Championship 2022"]
[Site "Kemer-Antalya"]
[Date "2022.11.30"]
[Round "6.5"]
[White "Isik, Alparslan"]
[Black "Gokbulut, Julia"]
[Result "1-0"]
[ECO "E05"]
[WhiteElo "2463"]
[BlackElo "1912"]
[Annotator "TA"]
[PlyCount "89"]
[EventDate "2022.11.25"]
[EventCountry "TUR"]
[SourceTitle "playchess.com"]
[Source "ChessBase"]
[SourceQuality "1"]
[TimeControl "40/5400+30:1800+30"]

{[%evp 16,89,0,0,94,97,90,47,58,39,82,75,100,86,79,80,102,91,99,112,139,141,135,141,155,127,152,152,149,153,143,118,450,412,434,426,411,404,575,594,611,611,595,599,605,596,595,591,722,575,583,555,724,655,670,649,664,662,657,662,662,644,651,636,667,657,703,695,696,693,704,689,685,681,996,981]} 1. Nf3 {[%emt 0:01:00]} Nf6 {[%emt 0:01:00]} 2. c4 {[%emt 0:00:00]} e6 {[%emt 0:00:30]} 3. g3 {[%emt 0:00:00]} Be7 {[%emt 0:01:30]} 4. Bg2 {[%emt 0:00:00]} O-O {[%emt 0:00:30]} 5. O-O {[%emt 0:00:00]} d5 {[%emt 0:00:00]} 6. d4 {[%emt 0:00:30]} dxc4 {[%emt 0:00:00]} 7. Ne5 {[%emt 0:00:30]} Nc6 {[%emt 0:00:30]} 8. Nxc6 {[%emt 0:00:00]} bxc6 {[%emt 0:00:30]} 9. Na3 {[%emt 0:00:00]} Rb8 {[%emt 0:07:30] E05: Open Catalan: 5 Nf3 Be7.} (9... Bxa3 $11 10. bxa3 Ba6) 10. Nxc4 $16 {[%emt 0:00:30]} c5 {[%emt 0:00:30]} 11. dxc5 {[%emt 0:00:30]} Bxc5 {[%emt 0:00:30] White is slightly better.} 12. Qc2 {[%emt 0:02:30] [#]} Qe7 $146 {[%emt 0:07:30]} ({Predecessor:} 12... Bb7 13. Rd1 Qc8 14. Na5 Bxg2 15. Qxc5 Bd5 16. Rxd5 Nxd5 17. Nc6 Qb7 18. Nxb8 Rxb8 {1-0 (58) Tammert,I (2313)-Nabavi,P (2207) Baden 2018}) 13. b3 {[%emt 0:02:30]} Bb7 {[%emt 0:05:30]} 14. Bb2 {[%emt 0:00:30]} Bxg2 {[%emt 0:04:30]} 15. Kxg2 {[%emt 0:00:30]} Nd7 {[%emt 0:03:30]} 16. Rac1 {[%emt 0:03:30]} f6 {[%emt 0:11:30] Inhibits Ne5.} 17. Rfd1 {[%emt 0:01:30]} Rbc8 {[%emt 0:08:30]} 18. Na5 {[%emt 0:06:30][%cal Od1d7,Bc4a5,Ba5c6,Bc6d4,Bd4f5][%mdl 32] [#] Strongly threatening Rxd7!} Bb6 {[%emt 0:03:30]} 19. Nc6 {[%emt 0:02:30]} Qe8 {[%emt 0:04:30]} 20. Qc4 {[%emt 0:11:30]} Kh8 {[%emt 0:04:30]} 21. a4 {[%emt 0:02:30] aiming for Ba3. White is much more active.} Nc5 {[%emt 0:07:30]} 22. Nd4 $36 {[%emt 0:01:30][%mdl 2048] White is on the roll.} e5 {[%emt 0:04:30]} 23. Nf5 {[%emt 0:00:00] Hoping for Ba3.} Ne6 $2 {[%emt 0:03:30][%mdl 8192] [#] A mistake that costs the game.} (23... Qe6 $16 {is more resistant.}) 24. Ba3 $1 $18 {[%emt 0:01:00]} c5 {[%emt 0:02:35]} 25. Nd6 {[%emt 0:01:30][%csl LRc8,LRe8]} Qc6+ {[%emt 0:00:45]} 26. f3 {[%emt 0:00:00]} Nd4 {[%emt 0:02:25]} (26... Rce8 {was called for.} 27. Nxe8 Rxe8) 27. Nxc8 {[%emt 0:00:00] White is clearly winning.} Rxc8 {[%emt 0:00:11]} 28. a5 {[%emt 0:01:30] Against h6} Bxa5 {[%emt 0:04:02]} 29. Qxc5 {[%emt 0:00:30]} Qxc5 {[%emt 0:01:39]} 30. Rxc5 {[%emt 0:00:00]} ({Not} 30. Bxc5 Nxb3 31. Be3 Nxc1 32. Rxc1 Rxc1 33. Bxc1 Bb6 $17) 30... Rxc5 {[%emt 0:02:19]} 31. Bxc5 {[%emt 0:00:00][%mdl 4096] Endgame KRB-KBN} Ne6 {[%emt 0:01:55]} 32. Bxa7 {[%emt 0:00:30] Rd6 is the strong threat.} Bb4 {[%emt 0:01:20]} 33. Be3 {[%emt 0:00:30]} h5 {[%emt 0:00:35]} 34. Bd2 {[%emt 0:00:00]} Be7 {[%emt 0:00:04]} 35. b4 {[%emt 0:01:00]} Nd4 {[%emt 0:00:37]} 36. e3 {[%emt 0:00:30] Inhibits g5.} Nb5 {[%emt 0:00:34]} 37. Ra1 {[%emt 0:00:00]} Kg8 {[%emt 0:00:50]} 38. Kf2 {[%emt 0:01:00]} Kf7 {[%emt 0:00:19]} 39. Ke2 {[%emt 0:00:00]} Ke6 {[%emt 0:01:17]} 40. Kd3 {[%emt 0:00:00]} Bd8 {[%emt 0:00:00]} 41. Ra6+ {[%emt 0:00:30]} Kd7 {[%emt 0:01:33]} 42. Kc4 {[%emt 0:00:30]} Nc7 {[%emt 0:01:30]} 43. Ra1 {[%emt 0:00:30]} Kc6 {[%emt 0:00:30]} 44. b5+ {[%emt 0:01:30]} Kb7 {[%emt 0:04:30]} 45. Ba5 {[%emt 0:00:00] Weighted Error Value: White=0.14 (very precise) /Black=0.44} 1-0

[Event "Turkish Championship 2022"]
[Site "Kemer-Antalya"]
[Date "2022.12.01"]
[Round "7.1"]
[White "Gokbulut, Yulia"]
[Black "Yavuz, Efe Metehan"]
[Result "0-1"]
[ECO "A40"]
[WhiteElo "1912"]
[BlackElo "2256"]
[Annotator "TA"]
[PlyCount "66"]
[EventDate "2022.11.25"]
[EventCountry "TUR"]
[SourceTitle "playchess.com"]
[Source "ChessBase"]
[SourceQuality "1"]
[TimeControl "40/5400+30:1800+30"]

{[%evp 9,66,-18,48,-10,-28,-8,4,8,116,118,97,106,116,111,117,125,210,214,225,206,298,110,108,107,161,165,193,185,188,176,200,0,0,0,0,-56,-75,-321,-302,-295,-269,-805,-792,-742,-501,-29985,-29986,-29986,-29987,-29987,-29988,-29981,-29982,-29982,-29983,-29982,-29983,-29979,-5297]} 1. d4 {[%emt 0:01:00]} e6 {[%emt 0:01:00]} 2. c4 {[%emt 0:00:00]} b6 {[%emt 0:00:30]} 3. Nc3 {[%emt 0:01:00]} Bb7 {[%emt 0:01:30]} 4. e4 {[%emt 0:03:30]} Bb4 {[%emt 0:00:30]} 5. d5 {[%emt 0:01:30]} Na6 {[%emt 0:08:30]} ({Black should try} 5... Qe7 $11) 6. Bd3 {[%emt 0:01:30] A40: Unusual replies to 1 d4.} (6. Nge2 $1 $14) 6... Bxc3+ $11 {[%emt 0:21:30]} 7. bxc3 {[%emt 0:00:00]} Qf6 {[%emt 0:00:30]} 8. Ne2 {[%emt 0:02:00] The position is equal.} g5 {[%emt 0:13:30]} (8... Nc5 $11) 9. O-O {[%emt 0:01:30]} e5 {[%emt 0:00:30] Prevents f4.} 10. Be3 {[%emt 0:03:30]} Ne7 {[%emt 0:09:30]} 11. f4 {[%emt 0:04:30]} gxf4 {[%emt 0:01:30]} (11... exf4 $2 12. Bd4 Qh6 13. Bxh8 $18) 12. Nxf4 {[%emt 0:00:30][%mdl 64] [#] Threatens to win with Nh5.} exf4 $146 {[%emt 0:12:30]} (12... Qg5 $16) ({Predecessor:} 12... Qd6 13. Nh5 O-O-O 14. Rf6 Qa3 15. Qb3 Qa5 16. Bc2 Rdf8 17. a3 Ng8 18. Rf5 d6 {1-0 (30) Krueger,P-Zander,O Hamburg 1921}) 13. Bd4 $18 {[%emt 0:00:30][%mdl 64] Skewer, Deflection} Qg5 {[%emt 0:00:00]} 14. Bxh8 {[%emt 0:01:30]} f6 {[%emt 0:00:00] Inhibits e5.} (14... O-O-O $142) 15. Bxf6 $2 {[%emt 0:06:30]} Qxf6 $16 {[%emt 0:00:00]} 16. Qh5+ {[%emt 0:01:30]} Qg6 {[%emt 0:01:00] [#]} (16... Qf7 $16 17. Qxf7+ Kxf7) 17. Qh4 $1 $18 {[%emt 0:02:30][%mdl 1024] White has strong compensation.} (17. Qe5 $6 Nc5 18. Be2 (18. Qxc7 Nxd3 19. Qxb7 Rc8 $17) 18... d6 19. Qxf4 O-O-O $11) 17... Qd6 {[%emt 0:04:30]} 18. e5 $1 {[%emt 0:05:30]} (18. Rxf4 Ng6 19. Qxh7 Nxf4 $17) (18. Qxf4 Qxf4 19. Rxf4 Ng6 $15) (18. Qxh7 O-O-O $11) 18... Qc5+ {[%emt 0:00:30]} 19. Kh1 {[%emt 0:00:30] Black must now prevent Qh5+.} O-O-O {[%emt 0:00:00][%cal Oe7d5]} 20. Qxh7 $2 {[%emt 0:02:30]} ({Don't take} 20. Qxf4 $6 b5 $16) (20. Rxf4 $18 Nxd5 21. cxd5 Qxd5 22. Be4 (22. Bxh7 $2 Qxg2#) 22... Qxe5 23. Bxb7+ (23. Bxh7 Qxc3 24. Qf6 Qe3 $14) 23... Kxb7 24. Qxd8 Qxf4 25. Qxd7) 20... b5 $11 {[%emt 0:06:35]} 21. d6 {[%emt 0:22:30]} cxd6 {[%emt 0:03:28]} 22. cxb5 {[%emt 0:09:30]} (22. Qxe7 $2 {too greedy.} Bxg2+ 23. Kxg2 Rg8+ 24. Kh3 Qe3+ 25. Kh4 f3 $19) (22. exd6 $11 Qxd6 23. Be4) 22... Qd5 $1 $15 {[%emt 0:01:34][%csl Gb7][%cal Rd5g2] Chess con chili.} 23. Rf3 $2 {[%emt 0:11:33] This move loses the game for White.} (23. Be4 $17 {was the only chance.} Qxe4 24. Qxe4 Bxe4 25. exd6) 23... Nc5 $19 {[%emt 0:00:57]} 24. Qxe7 {[%emt 0:06:14] Strongly threatening Bf1.} Nxd3 {[%emt 0:00:04]} 25. exd6 $2 {[%emt 0:02:37]} (25. Qxd6 Qxd6 26. exd6 Bxf3 27. gxf3) 25... Ne5 {[%emt 0:00:55]} ({Inferior is} 25... Qxb5 26. Qe2 Bxf3 27. Qxf3 $17) 26. Rf2 {[%emt 0:03:04]} f3 {[%emt 0:00:59]} 27. g3 {[%emt 0:03:41]} (27. Qh4 $19 Rg8 28. a3) 27... Ng4 {[%emt 0:00:44] Black mates.} 28. Qe1 {[%emt 0:00:59]} Nxf2+ {[%emt 0:01:37]} 29. Qxf2 {[%emt 0:00:01]} Re8 {[%emt 0:00:00]} 30. c4 {[%emt 0:01:55] [#]} Qd4 $3 {[%emt 0:00:26][%mdl 512]} 31. Qxd4 {[%emt 0:00:35] [#]} Re1+ $3 {[%emt 0:01:18][%mdl 576] Promotion} 32. Rxe1 {[%emt 0:00:14]} f2+ {[%emt 0:00:02]} 33. Qd5 {[%emt 0:01:22]} fxe1=Q+ {[%emt 0:00:09] Weighted Error Value: White=0.77/Black=0.31} (33... Bxd5+ $142 34. cxd5 fxe1=Q+ 35. Kg2 Qe2+ 36. Kh3 Qxa2 37. Kh4 Qxd5 38. Kg4 Qxb5 39. Kh4 a5 40. g4 a4 41. g5 a3 42. g6 a2 43. g7 Qc4+ 44. Kg5 a1=Q 45. g8=Q+ Qxg8+ 46. Kf5 Qe6+ 47. Kf4 Qd4+ 48. Kg5 Qdg4#) 0-1